Workbook

Sheet GMAB Liab
A1: GMAB Liabilities
B4: Input
B6: Product asumption
B7: Initial Premium ($) | C7: 100000
B8: M&E fees | C8: 0.01 | D8: (% of fund value)
B9: Expense
B10: Intitial | C10: 0.05 | D10: (% of initial premium)
B11: Ongoing / year | C11: 250
B13: GMAB features
B14: Guarantee ($) | C14: 100000
B15: Term (years) | C15: 7 | D15: (<= 10)
B16: Rider Fees (bp) | C16: 0.005 | D16: (% of fund value)
B18: Behavior /actuarial assumption
B19: Annual lapse rate | C19: 0.05
B21: Market assumption
B22: Fund return | C22: 0.06 | D22: (pre-fees)
B25: Output
L52: PV of cash flows at 5% | O52: ='GMAB liab work'!F22 -> 2728.60374

Sheet GMAB liab work (hidden)
A1: GMAB Work | I1: ='GMAB Liab'!B8 -> M&E fees | J1: ='GMAB Liab'!C8 -> 0.01
I2: ='GMAB Liab'!B16 -> Rider Fees (bp) | J2: ='GMAB Liab'!C16 -> 0.005 | R2: CHECK
C3: Actuarial | G3: Fund return no decrement | R3: Cash flows with decrement
B4: Year | C4: tpx | D4: wx | E4: lapse amount | G4: AV (end of year) | H4: return (%) | I4: return ($) | J4: fees (%) | K4: fees ($) | L4: Guar ($) | N4: Expenses (no decr) | R4: AV (end of year) | S4: return | T4: Insurer | U4: to policyholder | W4: AV EOY (roll) | X4: Compare
B5: 0 | C5: 1 | G5: ='GMAB Liab'!C7 -> 100000 | R5: =G5*C5 -> 100000
B6: =B5+1 -> 1 | C6: =C5*(1-D6) -> 0.95 | D6: =IF(B6='GMAB Liab'!$C$15,1,'GMAB Liab'!$C$19) -> 0.05 | E6: =C5-C6 -> 0.05 | G6: =G5+I6-K6+L6 -> 104455 | H6: ='GMAB Liab'!$C$22 -> 0.06 | I6: =G5*H6 -> 6000 | J6: =$J$1+$J$2 -> 0.015 | K6: =MIN((G5+0.5*I6)*J6,G5+I6) -> 1545 | L6: =IF(B6='GMAB Liab'!$C$15,MAX('GMAB Liab'!$C$14-(G5+I6-K6),0),0) -> 0 | N6: ='GMAB Liab'!C$11+G5*'GMAB Liab'!C10 -> 5250 | R6: =G6*C6 -> 99232.25 | S6: =I6*C5 -> 6000 | T6: =F24 -> -3705 | U6: =C24 -> 5222.75 | W6: =R5+S6-T6-U6 -> 104482.25 | X6: =W6-R6 -> 5250
B7: =B6+1 -> 2 | C7: =C6*(1-D7) -> 0.9025 | D7: =IF(B7='GMAB Liab'!$C$15,1,'GMAB Liab'!$C$19) -> 0.05 | E7: =C6-C7 -> 0.0475 | G7: =G6+I7-K7+L7 -> 109108.4702 | H7: ='GMAB Liab'!$C$22 -> 0.06 | I7: =G6*H7 -> 6267.3 | J7: =$J$1+$J$2 -> 0.015 | K7: =MIN((G6+0.5*I7)*J7,G6+I7) -> 1613.82975 | L7: =IF(B7='GMAB Liab'!$C$15,MAX('GMAB Liab'!$C$14-(G6+I7-K7),0),0) -> 0 | N7: ='GMAB Liab'!C$11 -> 250 | R7: 98470.3944 | S7: =I7*C6 -> 5953.935 | T7: 1295.638262 | U7: 5182.652337 | W7: =R6+S7-T7-U7 -> 98707.8944 | X7: =W7-R7 -> 237.5
B8: 3 | C8: 0.857375 | D8: =IF(B8='GMAB Liab'!$C$15,1,'GMAB Liab'!$C$19) -> 0.05 | E8: 0.045125 | G8: 113969.2526 | H8: ='GMAB Liab'!$C$22 -> 0.06 | I8: 6546.508215 | J8: 0.015 | K8: 1685.725865 | L8: =IF(B8='GMAB Liab'!$C$15,MAX('GMAB Liab'!$C$14-(G7+I8-K8),0),0) -> 0 | N8: ='GMAB Liab'!C$11 -> 250 | R8: 97714.38795 | S8: 5908.223664 | T8: 1295.742593 | U8: 5142.862524 | W8: 97940.01295 | X8: 225.625
B9: 4 | C9: 0.81450625 | D9: =IF(B9='GMAB Liab'!$C$15,1,'GMAB Liab'!$C$19) -> 0.05 | E9: 0.04286875 | G9: 119046.5828 | H9: ='GMAB Liab'!$C$22 -> 0.06 | I9: 6838.155156 | J9: 0.015 | K9: 1760.824953 | L9: =IF(B9='GMAB Liab'!$C$15,MAX('GMAB Liab'!$C$14-(G8+I9-K9),0),0) -> 0 | N9: ='GMAB Liab'!C$11 -> 250 | R9: 96964.18573 | S9: 5862.863277 | T9: 1295.343544 | U9: 5103.378197 | W9: 97178.52948 | X9: 214.34375
B10: 5 | C10: 0.7737809375 | D10: =IF(B10='GMAB Liab'!$C$15,1,'GMAB Liab'!$C$19) -> 0.05 | E10: 0.0407253125 | G10: 124350.1081 | H10: ='GMAB Liab'!$C$22 -> 0.06 | I10: 7142.794968 | J10: 0.015 | K10: 1839.269704 | L10: =IF(B10='GMAB Liab'!$C$15,MAX('GMAB Liab'!$C$14-(G9+I10-K10),0),0) -> 0 | N10: ='GMAB Liab'!C$11 -> 250 | R10: 96219.7432 | S10: 5817.851144 | T10: 1294.470107 | U10: 5064.19701 | W10: 96423.36976 | X10: 203.6265625
B11: 6 | C11: 0.7350918906 | D11: =IF(B11='GMAB Liab'!$C$15,1,'GMAB Liab'!$C$19) -> 0.05 | E11: 0.03868904688 | G11: 129889.9054 | H11: ='GMAB Liab'!$C$22 -> 0.06 | I11: 7461.006484 | J11: 0.015 | K11: 1921.20917 | L11: =IF(B11='GMAB Liab'!$C$15,MAX('GMAB Liab'!$C$14-(G10+I11-K11),0),0) -> 0 | N11: ='GMAB Liab'!C$11 -> 250 | R11: 95481.01612 | S11: 5773.184592 | T11: 1293.149798 | U11: 5025.316638 | W11: 95674.46135 | X11: 193.4452344
B12: 7 | C12: 0 | D12: =IF(B12='GMAB Liab'!$C$15,1,'GMAB Liab'!$C$19) -> 1 | E12: 0.7350918906 | G12: 135676.5007 | H12: ='GMAB Liab'!$C$22 -> 0.06 | I12: 7793.394323 | J12: 0.015 | K12: 2006.799038 | L12: =IF(B12='GMAB Liab'!$C$15,MAX('GMAB Liab'!$C$14-(G11+I12-K12),0),0) -> 0 | N12: ='GMAB Liab'!C$11 -> 250 | R12: 0 | S12: 5728.860967 | T12: 1291.408726 | U12: 99734.69539 | W12: 183.7729727 | X12: 183.7729727
B13: 8 | C13: 0 | D13: =IF(B13='GMAB Liab'!$C$15,1,'GMAB Liab'!$C$19) -> 0.05 | E13: 0 | G13: 141720.8888 | H13: ='GMAB Liab'!$C$22 -> 0.06 | I13: 8140.59004 | J13: 0.015 | K13: 2096.201935 | L13: =IF(B13='GMAB Liab'!$C$15,MAX('GMAB Liab'!$C$14-(G12+I13-K13),0),0) -> 0 | N13: ='GMAB Liab'!C$11 -> 250 | R13: 0 | S13: 0 | T13: 0 | U13: 0 | W13: 0 | X13: 0
B14: 9 | C14: 0 | D14: =IF(B14='GMAB Liab'!$C$15,1,'GMAB Liab'!$C$19) -> 0.05 | E14: 0 | G14: 148034.5544 | H14: ='GMAB Liab'!$C$22 -> 0.06 | I14: 8503.253326 | J14: 0.015 | K14: 2189.587732 | L14: =IF(B14='GMAB Liab'!$C$15,MAX('GMAB Liab'!$C$14-(G13+I14-K14),0),0) -> 0 | N14: ='GMAB Liab'!C$11 -> 250 | R14: 0 | S14: 0 | T14: 0 | U14: 0 | W14: 0 | X14: 0
B15: 10 | C15: 0 | D15: =IF(B15='GMAB Liab'!$C$15,1,'GMAB Liab'!$C$19) -> 0.05 | E15: 0 | G15: 154629.4938 | H15: ='GMAB Liab'!$C$22 -> 0.06 | I15: 8882.073262 | J15: 0.015 | K15: 2287.133865 | L15: =IF(B15='GMAB Liab'!$C$15,MAX('GMAB Liab'!$C$14-(G14+I15-K15),0),0) -> 0 | N15: ='GMAB Liab'!C$11 -> 250 | R15: 0 | S15: 0 | T15: 0 | U15: 0 | W15: 0 | X15: 0
R16: =G16*C16 -> 0 | S16: =I16*C15 -> 0 | T16: =F34 -> 0 | U16: =C34 -> 0 | W16: =R15+S16-T16-U16 -> 0 | X16: =W16-R16 -> 0
B22: Graphs | F22: =NPV(5%,F24:F33) -> 2728.60374
B23: Year | C23: Cashflow to policyholder | E23: Year | F23: Cash flow to Insurer
B24: =B6 -> 1 | C24: =E6*G6 -> 5222.75 | E24: =B24 -> 1 | F24: =C5*(K6-L6)-N6*C5 -> -3705
B25: 2 | C25: 5182.652337 | E25: =B25 -> 2 | F25: =C6*(K7-L7)-N7*C6 -> 1295.638262
B26: 3 | C26: 5142.862524 | E26: 3 | F26: 1295.742593
B27: 4 | C27: 5103.378197 | E27: 4 | F27: 1295.343544
B28: 5 | C28: 5064.19701 | E28: 5 | F28: 1294.470107
B29: 6 | C29: 5025.316638 | E29: 6 | F29: 1293.149798
B30: 7 | C30: 99734.69539 | E30: 7 | F30: 1291.408726
B31: 8 | C31: 0 | E31: 8 | F31: 0
B32: 9 | C32: 0 | E32: 9 | F32: 0
B33: 10 | C33: 0 | E33: 10 | F33: 0

Sheet GMAB Liab plus Put
A1: GMAB Liabilities With a Put Option
B4: Input
B6: Product asumption | H6: Add asset -- European Put
B7: Initial Premium ($) | C7: ='GMAB Liab'!C7 -> 100000 | H7: Current fund level | J7: 1000 | K7: (e.g., S&P or whatever is most relevant)
B8: M&E fees | C8: ='GMAB Liab'!C8 -> 0.01 | D8: (% of fund value)
B9: Expense | H9: Put (Notional based on 5% lapse assumption)
B10: Intitial | C10: ='GMAB Liab'!C10 -> 0.05 | D10: (% of initial premium) | H10: Term | I10: =C15 -> 7
B11: Ongoing / year | C11: ='GMAB Liab'!C11 -> 250 | H11: Strike | I11: =J7*C14/(C7*(1-C8-C16)^C15) -> 1111.594493
H12: Notional | I12: =C7/J7*(1-5%)^C15 -> 69.83372961
B13: GMAB features
B14: Guarantee ($) | C14: ='GMAB Liab'!C14 -> 100000 | H14: Payoff = $ Notional * max (strike - fund at term,0) In other words this is $ per point.
B15: Term (years) | C15: ='GMAB Liab'!C15 -> 7 | D15: (<= 10)
B16: Rider Fees (bp) | C16: ='GMAB Liab'!C16 -> 0.005 | D16: (% of fund value) | H16: Put cost | I16: ='GMAB liab PLUS put work'!R23 -> 3992.29396 | J16: (this is based on hidden BS model -- but don't worry about this here)
B18: Behavior /actuarial assumption
B19: Annual lapse rate | C19: ='GMAB Liab'!C19 -> 0.05
B21: Market assumption
B22: Fund return | C22: 0.06 | D22: (pre-fees)
B25: Output
B52: PV of cash flows at 5%
B53: Excluding Put | E53: ='GMAB liab PLUS put work'!F22 -> 2728.60374
B54: Put cash flow | E54: ='GMAB liab PLUS put work'!G22 -> -3802.184724
B55: Total cash flow | E55: ='GMAB liab PLUS put work'!H22 -> -1073.580984

Sheet GMAB liab PLUS put work (hidden)
A1: GMAB Work | I1: ='GMAB Liab plus Put'!B8 -> M&E fees | J1: ='GMAB Liab plus Put'!C8 -> 0.01
I2: ='GMAB Liab plus Put'!B16 -> Rider Fees (bp) | J2: ='GMAB Liab plus Put'!C16 -> 0.005 | X2: CHECK
C3: Actuarial | G3: Fund return no decrement | Q3: =NPV(5%,Q5:Q14) -> -3802.184724 | X3: Cash flows with decrement
B4: Year | C4: tpx | D4: wx | E4: lapse amount | G4: AV (end of year) | H4: return (%) | I4: return ($) | J4: fees (%) | K4: fees ($) | L4: Guar ($) | N4: Expenses (no decr) | Q4: Put Payoff | X4: AV (end of year) | Y4: return | Z4: Insurer | AA4: to policyholder | AC4: AV EOY (roll) | AD4: Compare
B5: 0 | C5: 1 | G5: ='GMAB Liab plus Put'!C7 -> 100000 | P5: ='GMAB Liab plus Put'!J7 -> 1000 | X5: =G5*C5 -> 100000
B6: =B5+1 -> 1 | C6: =C5*(1-D6) -> 0.95 | D6: =IF(B6='GMAB Liab plus Put'!$C$15,1,'GMAB Liab plus Put'!$C$19) -> 0.05 | E6: =C5-C6 -> 0.05 | G6: =G5+I6-K6+L6 -> 104455 | H6: ='GMAB Liab plus Put'!$C$22 -> 0.06 | I6: =G5*H6 -> 6000 | J6: =$J$1+$J$2 -> 0.015 | K6: =MIN((G5+0.5*I6)*J6,G5+I6) -> 1545 | L6: =IF(B6='GMAB Liab plus Put'!$C$15,MAX('GMAB Liab plus Put'!$C$14-(G5+I6-K6),0),0) -> 0 | N6: ='GMAB Liab plus Put'!C$11+G5*'GMAB Liab plus Put'!C10 -> 5250 | P6: =P5*(1+H6) -> 1060 | Q6: =IF(B6='GMAB Liab plus Put'!$I$10,MAX('GMAB Liab plus Put'!$I$11-P6,0),0)*'GMAB Liab plus Put'!$I$12-R23 -> -3992.29396 | X6: 99232.25 | Y6: =I6*C5 -> 6000 | Z6: =F24 -> -3705 | AA6: =C24 -> 5222.75 | AC6: =X5+Y6-Z6-AA6 -> 104482.25 | AD6: =AC6-X6 -> 5250
B7: 2 | C7: 0.9025 | D7: =IF(B7='GMAB Liab plus Put'!$C$15,1,'GMAB Liab plus Put'!$C$19) -> 0.05 | E7: 0.0475 | G7: 109108.4702 | H7: ='GMAB Liab plus Put'!$C$22 -> 0.06 | I7: 6267.3 | J7: 0.015 | K7: 1613.82975 | L7: =IF(B7='GMAB Liab plus Put'!$C$15,MAX('GMAB Liab plus Put'!$C$14-(G6+I7-K7),0),0) -> 0 | N7: ='GMAB Liab plus Put'!C$11 -> 250 | P7: =P6*(1+H7) -> 1123.6 | Q7: =IF(B7='GMAB Liab plus Put'!$I$10,MAX('GMAB Liab plus Put'!$I$11-P7,0),0)*'GMAB Liab plus Put'!$I$12 -> 0 | X7: 98470.3944 | Y7: 5953.935 | Z7: 1295.638262 | AA7: 5182.652337 | AC7: 98707.8944 | AD7: 237.5
B8: 3 | C8: 0.857375 | D8: =IF(B8='GMAB Liab plus Put'!$C$15,1,'GMAB Liab plus Put'!$C$19) -> 0.05 | E8: 0.045125 | G8: 113969.2526 | H8: ='GMAB Liab plus Put'!$C$22 -> 0.06 | I8: 6546.508215 | J8: 0.015 | K8: 1685.725865 | L8: =IF(B8='GMAB Liab plus Put'!$C$15,MAX('GMAB Liab plus Put'!$C$14-(G7+I8-K8),0),0) -> 0 | N8: ='GMAB Liab plus Put'!C$11 -> 250 | P8: 1191.016 | Q8: =IF(B8='GMAB Liab plus Put'!$I$10,MAX('GMAB Liab plus Put'!$I$11-P8,0),0)*'GMAB Liab plus Put'!$I$12 -> 0 | X8: 97714.38795 | Y8: 5908.223664 | Z8: 1295.742593 | AA8: 5142.862524 | AC8: 97940.01295 | AD8: 225.625
B9: 4 | C9: 0.81450625 | D9: =IF(B9='GMAB Liab plus Put'!$C$15,1,'GMAB Liab plus Put'!$C$19) -> 0.05 | E9: 0.04286875 | G9: 119046.5828 | H9: ='GMAB Liab plus Put'!$C$22 -> 0.06 | I9: 6838.155156 | J9: 0.015 | K9: 1760.824953 | L9: =IF(B9='GMAB Liab plus Put'!$C$15,MAX('GMAB Liab plus Put'!$C$14-(G8+I9-K9),0),0) -> 0 | N9: ='GMAB Liab plus Put'!C$11 -> 250 | P9: 1262.47696 | Q9: =IF(B9='GMAB Liab plus Put'!$I$10,MAX('GMAB Liab plus Put'!$I$11-P9,0),0)*'GMAB Liab plus Put'!$I$12 -> 0 | X9: 96964.18573 | Y9: 5862.863277 | Z9: 1295.343544 | AA9: 5103.378197 | AC9: 97178.52948 | AD9: 214.34375
B10: 5 | C10: 0.7737809375 | D10: =IF(B10='GMAB Liab plus Put'!$C$15,1,'GMAB Liab plus Put'!$C$19) -> 0.05 | E10: 0.0407253125 | G10: 124350.1081 | H10: ='GMAB Liab plus Put'!$C$22 -> 0.06 | I10: 7142.794968 | J10: 0.015 | K10: 1839.269704 | L10: =IF(B10='GMAB Liab plus Put'!$C$15,MAX('GMAB Liab plus Put'!$C$14-(G9+I10-K10),0),0) -> 0 | N10: ='GMAB Liab plus Put'!C$11 -> 250 | P10: 1338.225578 | Q10: =IF(B10='GMAB Liab plus Put'!$I$10,MAX('GMAB Liab plus Put'!$I$11-P10,0),0)*'GMAB Liab plus Put'!$I$12 -> 0 | X10: 96219.7432 | Y10: 5817.851144 | Z10: 1294.470107 | AA10: 5064.19701 | AC10: 96423.36976 | AD10: 203.6265625
B11: 6 | C11: 0.7350918906 | D11: =IF(B11='GMAB Liab plus Put'!$C$15,1,'GMAB Liab plus Put'!$C$19) -> 0.05 | E11: 0.03868904688 | G11: 129889.9054 | H11: ='GMAB Liab plus Put'!$C$22 -> 0.06 | I11: 7461.006484 | J11: 0.015 | K11: 1921.20917 | L11: =IF(B11='GMAB Liab plus Put'!$C$15,MAX('GMAB Liab plus Put'!$C$14-(G10+I11-K11),0),0) -> 0 | N11: ='GMAB Liab plus Put'!C$11 -> 250 | P11: 1418.519112 | Q11: =IF(B11='GMAB Liab plus Put'!$I$10,MAX('GMAB Liab plus Put'!$I$11-P11,0),0)*'GMAB Liab plus Put'!$I$12 -> 0 | X11: 95481.01612 | Y11: 5773.184592 | Z11: 1293.149798 | AA11: 5025.316638 | AC11: 95674.46135 | AD11: 193.4452344
B12: 7 | C12: 0 | D12: =IF(B12='GMAB Liab plus Put'!$C$15,1,'GMAB Liab plus Put'!$C$19) -> 1 | E12: 0.7350918906 | G12: 135676.5007 | H12: ='GMAB Liab plus Put'!$C$22 -> 0.06 | I12: 7793.394323 | J12: 0.015 | K12: 2006.799038 | L12: =IF(B12='GMAB Liab plus Put'!$C$15,MAX('GMAB Liab plus Put'!$C$14-(G11+I12-K12),0),0) -> 0 | N12: ='GMAB Liab plus Put'!C$11 -> 250 | P12: 1503.630259 | Q12: =IF(B12='GMAB Liab plus Put'!$I$10,MAX('GMAB Liab plus Put'!$I$11-P12,0),0)*'GMAB Liab plus Put'!$I$12 -> 0 | R12: =Q12/'GMAB Liab plus Put'!I12 -> 0 | S12: =P12+R12 -> 1503.630259 | X12: 0 | Y12: 5728.860967 | Z12: 1291.408726 | AA12: 99734.69539 | AC12: 183.7729727 | AD12: 183.7729727
B13: 8 | C13: 0 | D13: =IF(B13='GMAB Liab plus Put'!$C$15,1,'GMAB Liab plus Put'!$C$19) -> 0.05 | E13: 0 | G13: 141720.8888 | H13: ='GMAB Liab plus Put'!$C$22 -> 0.06 | I13: 8140.59004 | J13: 0.015 | K13: 2096.201935 | L13: =IF(B13='GMAB Liab plus Put'!$C$15,MAX('GMAB Liab plus Put'!$C$14-(G12+I13-K13),0),0) -> 0 | N13: ='GMAB Liab plus Put'!C$11 -> 250 | P13: 1593.848075 | Q13: =IF(B13='GMAB Liab plus Put'!$I$10,MAX('GMAB Liab plus Put'!$I$11-P13,0),0)*'GMAB Liab plus Put'!$I$12 -> 0 | R13: =L12*C11/'GMAB Liab plus Put'!I12 -> 0 | S13: =P12+R13 -> 1503.630259 | X13: 0 | Y13: 0 | Z13: 0 | AA13: 0 | AC13: 0 | AD13: 0
B14: 9 | C14: 0 | D14: =IF(B14='GMAB Liab plus Put'!$C$15,1,'GMAB Liab plus Put'!$C$19) -> 0.05 | E14: 0 | G14: 148034.5544 | H14: ='GMAB Liab plus Put'!$C$22 -> 0.06 | I14: 8503.253326 | J14: 0.015 | K14: 2189.587732 | L14: =IF(B14='GMAB Liab plus Put'!$C$15,MAX('GMAB Liab plus Put'!$C$14-(G13+I14-K14),0),0) -> 0 | N14: ='GMAB Liab plus Put'!C$11 -> 250 | P14: 1689.478959 | Q14: =IF(B14='GMAB Liab plus Put'!$I$10,MAX('GMAB Liab plus Put'!$I$11-P14,0),0)*'GMAB Liab plus Put'!$I$12 -> 0 | X14: 0 | Y14: 0 | Z14: 0 | AA14: 0 | AC14: 0 | AD14: 0
B15: 10 | C15: 0 | D15: =IF(B15='GMAB Liab plus Put'!$C$15,1,'GMAB Liab plus Put'!$C$19) -> 0.05 | E15: 0 | G15: 154629.4938 | H15: ='GMAB Liab plus Put'!$C$22 -> 0.06 | I15: 8882.073262 | J15: 0.015 | K15: 2287.133865 | L15: =IF(B15='GMAB Liab plus Put'!$C$15,MAX('GMAB Liab plus Put'!$C$14-(G14+I15-K15),0),0) -> 0 | N15: ='GMAB Liab plus Put'!C$11 -> 250 | P15: 1790.847697 | Q15: =IF(B15='GMAB Liab plus Put'!$I$10,MAX('GMAB Liab plus Put'!$I$11-P15,0),0)*'GMAB Liab plus Put'!$I$12 -> 0 | X15: 0 | Y15: 0 | Z15: 0 | AA15: 0 | AC15: =X14+Y15-Z15-AA15 -> 0 | AD15: =AC15-X15 -> 0
X16: 0 | Y16: 0 | Z16: 0 | AA16: 0 | AC16: =X15+Y16-Z16-AA16 -> 0 | AD16: =AC16-X16 -> 0
Q17: r | R17: 0.05
Q18: sigma | R18: 0.15
Q20: d1 | R20: =(LN('GMAB Liab plus Put'!J7/'GMAB Liab plus Put'!I11)+(R17+0.5*R18^2)*'GMAB Liab plus Put'!I10)/(R18*SQRT('GMAB Liab plus Put'!I10)) -> 0.8137689383
Q21: d2 | R21: =R20-R18*SQRT('GMAB Liab plus Put'!I10) -> 0.4169062417
B22: Graphs | F22: =NPV(5%,F24:F33) -> 2728.60374 | G22: =NPV(5%,G24:G33) -> -3802.184724 | H22: =NPV(5%,H24:H33) -> -1073.580984 | Q22: Put ($1) | R22: ='GMAB Liab plus Put'!I11*EXP(-'GMAB Liab plus Put'!I10*R17)*NORMSDIST(-R21)-'GMAB Liab plus Put'!J7*NORMSDIST(-R20) -> 57.16856285 | S22: =gmabvalue2() -> 
B23: Year | C23: Cashflow to policyholder | E23: Year | F23: Cash flow to Insurer | G23: =Q4 -> Put Payoff | H23: Total CF | Q23: Put Price | R23: =R22*'GMAB Liab plus Put'!I12 -> 3992.29396
B24: =B6 -> 1 | C24: =E6*G6 -> 5222.75 | E24: =B24 -> 1 | F24: =C5*(K6-L6)-N6*C5 -> -3705 | G24: =Q6 -> -3992.29396 | H24: =G24+F24 -> -7697.29396
B25: 2 | C25: 5182.652337 | E25: 2 | F25: 1295.638262 | G25: =Q7 -> 0 | H25: =G25+F25 -> 1295.638262
B26: 3 | C26: 5142.862524 | E26: 3 | F26: 1295.742593 | G26: 0 | H26: 1295.742593
B27: 4 | C27: 5103.378197 | E27: 4 | F27: 1295.343544 | G27: 0 | H27: 1295.343544
B28: 5 | C28: 5064.19701 | E28: 5 | F28: 1294.470107 | G28: 0 | H28: 1294.470107
B29: 6 | C29: 5025.316638 | E29: 6 | F29: 1293.149798 | G29: 0 | H29: 1293.149798
B30: 7 | C30: 99734.69539 | E30: 7 | F30: 1291.408726 | G30: 0 | H30: 1291.408726
B31: 8 | C31: 0 | E31: 8 | F31: 0 | G31: 0 | H31: 0
B32: 9 | C32: 0 | E32: 9 | F32: 0 | G32: 0 | H32: 0
B33: 10 | C33: 0 | E33: 10 | F33: 0 | G33: 0 | H33: 0

Sheet GMAB_RN
A1: Value a GMAB Liability Using Risk-Neutral Scenarios
B4: Input
B5: Product asumption
B6: Initial Premium ($) | C6: ='GMAB Liab'!C7 -> 100000
B7: M&E fees | C7: ='GMAB Liab'!C8 -> 0.01 | D7: (% of fund value)
B8: Expense
B9: Intitial | C9: ='GMAB Liab'!C10 -> 0.05 | D9: (% of initial premium)
B10: Ongoing / year | C10: ='GMAB Liab'!C11 -> 250
B12: GMAB features
B13: Guarantee ($) | C13: ='GMAB Liab'!C14 -> 100000
B14: Term (years) | C14: ='GMAB Liab'!C15 -> 7 | D14: (<= 10)
B15: Fees (bp) | C15: ='GMAB Liab'!C16 -> 0.005 | D15: (% of fund value)
B17: Behavior /actuarial assumption
B18: Annual lapse rate | C18: ='GMAB Liab'!C19 -> 0.05
B20: Market parameters
B21: Expected return on the policyholder funds | C21: 0.08 | D21: (used in real world models)
B22: Risk-free rate | C22: 0.03 | D22: (flat yield curve)
B23: Sigma (standard deviation of fund return) | C23: 0.2 | D23: (flat volatility surface)
B27: Output -- Single Scenario
B49: PART 2 -- UNGROUP TO SHOW
B50: Monte Carlo parameters
B51: Risk-neutral or real-world ? | C51: RW | D51: (RN/RW)
B52: # of scenarios to run | C52: 500 | D52: (max 5000)
B53: random # generator seed | C53: 6 | D53: <-- described in text
B57: Output -- Price the option
B58: Monte-Carlo output (CTE 0, i.e., average) | C58: 0 | D58: <-- this is the result of multiple risk-neutral runs
B59: Closed form formula | C59: =gmabvalue2(C14,C6*(1+C104),C13,C7+C15,C15,C18,C22+C105,C23+C106,0,1) -> 7237.760053 | D59: <-- this is from a closed form formula, similar to (but not identical to) Black-Scholes
B62: PART 3 -- UNGROUP TO SHOW
B63: Output -- Price the option 10 Times
B64: Monte carlo #1 | C64: 0
B65: Monte carlo #2 | C65: 0
B66: Monte carlo #3 | C66: 0
B67: Monte carlo #4 | C67: 0
B68: Monte carlo #5 | C68: 0
B69: Monte carlo #6 | C69: 0
B70: Monte carlo #7 | C70: 0
B71: Monte carlo #8 | C71: 0
B72: Monte carlo #9 | C72: 0
B73: Monte carlo #10 | C73: 0
B75: Average run result | C75: =AVERAGE(C64:C73) -> 0 | D75: <-- This should converge to the closed form solution (if one exists … as it does here)
B76: Standard deviation of run results | C76: =STDEV(C64:C73) -> 0 | D76: <-- Ideally this should be small, otherwise we need to increase the number of scenarios.
B80: PART 4 -- UNGROUP TO SHOW
L81: 5
B102: PART 5 -- UNGROUP TO SHOW
B103: SHOCK
B104: Equity | C104: 0
B105: Interest rate | C105: 0
B106: Vol | C106: 0

Sheet GMAB_RN Work (hidden)
A1: GMAB Work | I1: =GMAB_RN!B7 -> M&E fees | J1: =GMAB_RN!C7 -> 0.01 | X1: Histogram
F2: Immediate equityshock | G2: =GMAB_RN!C104 -> 0 | I2: =GMAB_RN!B15 -> Fees (bp) | J2: =GMAB_RN!C15 -> 0.005 | R2: flip to MOY for expenses and fees ? | Y2: 0
C3: Actuarial | G3: Fund return no decrement | V3: =MIN(M24:M5023) -> -9643.38 | X3: =V6 -> -11000 | Y3: =COUNTIF($M$24:$M$5023,"<="&X3)-SUM(Y2:Y$2) -> 0
B4: Year | C4: tpx | D4: wx | E4: lapse amount | G4: AV (end of year) | H4: return (%) | I4: return ($) | J4: fees (%) | K4: fees ($) | L4: Rider fees | M4: Guar ($) | O4: Expenses (no decr) | V4: =MAX(M24:M5023) -> 28959.98 | X4: =X3+$V$8 -> -10196.07843 | Y4: =COUNTIF($M$24:$M$5023,"<="&X4)-SUM(Y$2:Y3) -> 0
B5: 0 | C5: 1 | G5: =GMAB_RN!C6*(1+G2) -> 100000 | V5: 51 | X5: =X4+$V$8 -> -9392.156863 | Y5: =COUNTIF($M$24:$M$5023,"<="&X5)-SUM(Y$2:Y4) -> 1
B6: =B5+1 -> 1 | C6: =C5*(1-D6) -> 0.95 | D6: =IF(B6=GMAB_RN!$C$14,1,GMAB_RN!$C$18) -> 0.05 | E6: =C5-C6 -> 0.05 | F6: 126000.1165 | G6: =G5+I6-K6+M6 -> 90540.41812 | H6: =F26 -> -0.08080793782 | I6: =G5*H6 -> -8080.793782 | J6: =J1+J2 -> 0.015 | K6: =MIN((G5+I6)*J6,G5+I6) -> 1378.788093 | L6: =K6*($J$2/$J$6) -> 459.5960311 | M6: =IF(B6=GMAB_RN!$C$14,MAX(GMAB_RN!$C$13-(G5+I6-K6),0),0) -> 0 | O6: =GMAB_RN!C10+G5*GMAB_RN!C9 -> 5250 | V6: =ROUND(V3,-3)-1000 -> -11000 | X6: -8588.235294 | Y6: =COUNTIF($M$24:$M$5023,"<="&X6)-SUM(Y$2:Y5) -> 0
B7: =B6+1 -> 2 | C7: =C6*(1-D7) -> 0.9025 | D7: =IF(B7=GMAB_RN!$C$14,1,GMAB_RN!$C$18) -> 0.05 | E7: =C6-C7 -> 0.0475 | F7: 94622.22166 | G7: =G6+I7-K7+M7 -> 74323.91129 | H7: -0.1666070351 | I7: -15084.67062 | J7: =J6 -> 0.015 | K7: =MIN((G6+I7)*J7,G6+I7) -> 1131.836212 | L7: =K7*($J$2/$J$6) -> 377.2787375 | M7: =IF(B7=GMAB_RN!$C$14,MAX(GMAB_RN!$C$13-(G6+I7-K7),0),0) -> 0 | O7: =GMAB_RN!$C$10 -> 250 | V7: =ROUND(V4,-3)+1000 -> 30000 | X7: -7784.313725 | Y7: =COUNTIF($M$24:$M$5023,"<="&X7)-SUM(Y$2:Y6) -> 0
B8: 3 | C8: 0.857375 | D8: =IF(B8=GMAB_RN!$C$14,1,GMAB_RN!$C$18) -> 0.05 | E8: 0.045125 | F8: 107424.2173 | G8: 57569.32723 | H8: -0.213631031 | I8: -15877.8938 | J8: =J7 -> 0.015 | K8: 876.6902623 | L8: 292.2300874 | M8: =IF(B8=GMAB_RN!$C$14,MAX(GMAB_RN!$C$13-(G7+I8-K8),0),0) -> 0 | O8: =GMAB_RN!$C$10 -> 250 | V8: =(V7-V6)/V5 -> 803.9215686 | X8: -6980.392157 | Y8: =COUNTIF($M$24:$M$5023,"<="&X8)-SUM(Y$2:Y7) -> 1
B9: 4 | C9: 0.81450625 | D9: =IF(B9=GMAB_RN!$C$14,1,GMAB_RN!$C$18) -> 0.05 | E9: 0.04286875 | F9: 129970.3062 | G9: 57198.4985 | H9: 0.008688904648 | I9: 500.2143949 | J9: 0.015 | K9: 871.0431243 | L9: 290.3477081 | M9: =IF(B9=GMAB_RN!$C$14,MAX(GMAB_RN!$C$13-(G8+I9-K9),0),0) -> 0 | O9: =GMAB_RN!$C$10 -> 250 | X9: -6176.470588 | Y9: =COUNTIF($M$24:$M$5023,"<="&X9)-SUM(Y$2:Y8) -> 3
B10: 5 | C10: 0.7737809375 | D10: =IF(B10=GMAB_RN!$C$14,1,GMAB_RN!$C$18) -> 0.05 | E10: 0.0407253125 | F10: 119086.0156 | G10: 64583.58356 | H10: 0.1463078862 | I10: 8368.59141 | J10: 0.015 | K10: 983.5063486 | L10: 327.8354495 | M10: =IF(B10=GMAB_RN!$C$14,MAX(GMAB_RN!$C$13-(G9+I10-K10),0),0) -> 0 | O10: =GMAB_RN!$C$10 -> 250 | X10: -5372.54902 | Y10: =COUNTIF($M$24:$M$5023,"<="&X10)-SUM(Y$2:Y9) -> 4
B11: 6 | C11: 0.7350918906 | D11: =IF(B11=GMAB_RN!$C$14,1,GMAB_RN!$C$18) -> 0.05 | E11: 0.03868904688 | F11: 127803.8397 | G11: 60815.79253 | H11: -0.04399976048 | I11: -2841.662208 | J11: 0.015 | K11: 926.1288203 | L11: 308.7096068 | M11: =IF(B11=GMAB_RN!$C$14,MAX(GMAB_RN!$C$13-(G10+I11-K11),0),0) -> 0 | O11: =GMAB_RN!$C$10 -> 250 | X11: -4568.627451 | Y11: =COUNTIF($M$24:$M$5023,"<="&X11)-SUM(Y$2:Y10) -> 20
B12: 7 | C12: 0 | D12: =IF(B12=GMAB_RN!$C$14,1,GMAB_RN!$C$18) -> 1 | E12: 0.7350918906 | F12: 124390.5756 | G12: 100000 | H12: 0.2747134835 | I12: 16706.91822 | J12: 0.015 | K12: 1162.840661 | L12: 387.6135537 | M12: =IF(B12=GMAB_RN!$C$14,MAX(GMAB_RN!$C$13-(G11+I12-K12),0),0) -> 23640.12991 | O12: =GMAB_RN!$C$10 -> 250 | X12: -3764.705882 | Y12: =COUNTIF($M$24:$M$5023,"<="&X12)-SUM(Y$2:Y11) -> 53
B13: 8 | C13: 0 | D13: =IF(B13=GMAB_RN!$C$14,1,GMAB_RN!$C$18) -> 0.05 | E13: 0 | F13: 130457.8355 | G13: 95749.84521 | H13: -0.02792035321 | I13: -2792.035321 | J13: 0.015 | K13: 1458.11947 | L13: 486.0398234 | M13: =IF(B13=GMAB_RN!$C$14,MAX(GMAB_RN!$C$13-(G12+I13-K13),0),0) -> 0 | O13: =GMAB_RN!$C$10 -> 250 | X13: -2960.784314 | Y13: =COUNTIF($M$24:$M$5023,"<="&X13)-SUM(Y$2:Y12) -> 118
B14: 9 | C14: 0 | D14: =IF(B14=GMAB_RN!$C$14,1,GMAB_RN!$C$18) -> 0.05 | E14: 0 | F14: 129562.7615 | G14: 86309.44095 | H14: -0.08486747184 | I14: -8126.047292 | J14: 0.015 | K14: 1314.356969 | L14: 438.1189896 | M14: =IF(B14=GMAB_RN!$C$14,MAX(GMAB_RN!$C$13-(G13+I14-K14),0),0) -> 0 | O14: =GMAB_RN!$C$10 -> 250 | X14: -2156.862745 | Y14: =COUNTIF($M$24:$M$5023,"<="&X14)-SUM(Y$2:Y13) -> 135
B15: 10 | C15: 0 | D15: =IF(B15=GMAB_RN!$C$14,1,GMAB_RN!$C$18) -> 0.05 | E15: 0 | F15: 145162.0512 | G15: 145094.7653 | H15: 0.7067000857 | I15: 60994.88931 | J15: 0.015 | K15: 2209.564954 | L15: 736.5216513 | M15: =IF(B15=GMAB_RN!$C$14,MAX(GMAB_RN!$C$13-(G14+I15-K15),0),0) -> 0 | O15: =GMAB_RN!$C$10 -> 250 | X15: -1352.941176 | Y15: =COUNTIF($M$24:$M$5023,"<="&X15)-SUM(Y$2:Y14) -> 23
X16: -549.0196078 | Y16: =COUNTIF($M$24:$M$5023,"<="&X16)-SUM(Y$2:Y15) -> 6
X17: 254.9019608 | Y17: =COUNTIF($M$24:$M$5023,"<="&X17)-SUM(Y$2:Y16) -> 6
A18: GMAB RN work | K18: CTEO | L18: =AVERAGE(L23:L5023) -> 0.989683515 | M18: =AVERAGE(M23:M5023) -> 285.75542 | X18: 1058.823529 | Y18: =COUNTIF($M$24:$M$5023,"<="&X18)-SUM(Y$2:Y17) -> 5
X19: 1862.745098 | Y19: =COUNTIF($M$24:$M$5023,"<="&X19)-SUM(Y$2:Y18) -> 7
X20: 2666.666667 | Y20: =COUNTIF($M$24:$M$5023,"<="&X20)-SUM(Y$2:Y19) -> 3
D21: =GMAB_RN!C51 -> RW | L21: =E35*G35 -> 0.5790539583 | M21: =I23 -> 8318.813065 | X21: 3470.588235 | Y21: =COUNTIF($M$24:$M$5023,"<="&X21)-SUM(Y$2:Y20) -> 6
C22: =NORMSINV(RAND()) -> -0.2084507904 | D22: =IF(D21="RW",GMAB_RN!C21,GMAB_RN!C22)+GMAB_RN!C105 -> 0.08 | E22: =GMAB_RN!$C$23+GMAB_RN!C106 -> 0.2 | K22: Output | L22: PV(S&P) | M22: Put value | X22: 4274.509804 | Y22: =COUNTIF($M$24:$M$5023,"<="&X22)-SUM(Y$2:Y21) -> 4
B23: Project S&P | I23: =SUM(I26:I35) -> 8318.813065 | X23: 5078.431373 | Y23: =COUNTIF($M$24:$M$5023,"<="&X23)-SUM(Y$2:Y22) -> 5
B24: Time (t) | C24: rand_GMABRN | D24: return | E24: AV level | F24: AV retun | G24: Pvfact | H24: GMAB payoff | I24: PV GMAB | K24: 1 | L24: 0.4992559391 | M24: 2059.28 | P24: Time (t) | Q24: AV (no decrement) | R24: GMAB related cash flow | X24: 5882.352941 | Y24: =COUNTIF($M$24:$M$5023,"<="&X24)-SUM(Y$2:Y23) -> 11
B25: 0 | E25: 1 | G25: 1 | K25: =K24+1 -> 2 | L25: 1.342638101 | M25: -4626.75 | P25: 0 | Q25: =G5 -> 100000 | X25: 6686.27451 | Y25: =COUNTIF($M$24:$M$5023,"<="&X25)-SUM(Y$2:Y24) -> 6
B26: =B25+1 -> 1 | C26: -0.7213009403 | D26: =D22 -> 0.08 | E26: =E25*EXP((D26-0.5*$E$22^2)*($B26-$B25)+$C26*$E$22*SQRT($B26-$B25)) -> 0.9191920622 | F26: =E26/E25-1 -> -0.08080793782 | G26: =G25*EXP(-D26*($B26-$B25)) -> 0.9231163464 | H26: =-C5*(L6-M6) -> -459.5960311 | I26: =H26*G26 -> -424.260609 | K26: 3 | L26: 0.4541986988 | M26: 13069.74 | P26: =P25+1 -> 1 | Q26: =(G6-M6)*(C5>0) -> 90540.41812 | R26: =H26 -> -459.5960311 | X26: 7490.196078 | Y26: =COUNTIF($M$24:$M$5023,"<="&X26)-SUM(Y$2:Y25) -> 6
B27: 2 | C27: -1.211250008 | D27: =D26 -> 0.08 | E27: =E26*EXP((D27-0.5*$E$22^2)*($B27-$B26)+$C27*$E$22*SQRT($B27-$B26)) -> 0.766048198 | F27: =E27/E26-1 -> -0.1666070351 | G27: 0.852143789 | H27: =-C6*(L7-M7) -> -358.4148006 | I27: -305.4209462 | K27: 4 | L27: 1.475829957 | M27: -3661.82 | P27: 2 | Q27: 74323.91129 | R27: -358.4148006 | X27: 8294.117647 | Y27: =COUNTIF($M$24:$M$5023,"<="&X27)-SUM(Y$2:Y26) -> 6
B28: 3 | C28: -1.501645853 | D28: =D27 -> 0.08 | E28: 0.6023965316 | F28: -0.213631031 | G28: 0.7866278611 | H28: -263.7376539 | I28: -207.4633866 | K28: 5 | L28: 1.891826288 | M28: -4427.14 | P28: 3 | Q28: 57569.32723 | R28: -263.7376539 | X28: 9098.039216 | Y28: =COUNTIF($M$24:$M$5023,"<="&X28)-SUM(Y$2:Y27) -> 6
B29: 4 | C29: -0.2567431332 | D29: 0.08 | E29: 0.6076306976 | F29: 0.008688904648 | G29: 0.7261490371 | H29: -248.9368662 | I29: -180.7652657 | K29: 6 | L29: 0.3543243111 | M29: 10023.8 | P29: 4 | Q29: 57198.4985 | R29: -248.9368662 | X29: 9901.960784 | Y29: =COUNTIF($M$24:$M$5023,"<="&X29)-SUM(Y$2:Y28) -> 4
B30: 5 | C30: 0.3827312192 | D30: 0.08 | E30: 0.6965318606 | F30: 0.1463078862 | G30: 0.670320046 | H30: -267.0240226 | I30: -178.9915551 | K30: 7 | L30: 1.039914485 | M30: -2979.15 | P30: 5 | Q30: 64583.58356 | R30: -267.0240226 | X30: 10705.88235 | Y30: =COUNTIF($M$24:$M$5023,"<="&X30)-SUM(Y$2:Y29) -> 11
B31: 6 | C31: -0.5249855769 | D31: 0.08 | E31: 0.6658846256 | F31: -0.04399976048 | G31: 0.6187833918 | H31: -238.8736089 | I31: -147.8110219 | K31: 8 | L31: 0.6445915077 | M31: -2452.73 | P31: 6 | Q31: 60815.79253 | R31: -238.8736089 | X31: 11509.80392 | Y31: =COUNTIF($M$24:$M$5023,"<="&X31)-SUM(Y$2:Y30) -> 2
B32: 7 | C32: 0.9136071727 | D32: 0.08 | E32: 0.8488121107 | F32: 0.2747134835 | G32: 0.5712090638 | H32: 17092.73621 | I32: 9763.52585 | K32: 9 | L32: 0.4561405561 | M32: 7900.32 | P32: 7 | Q32: 76359.87009 | R32: 17092.73621 | X32: 12313.72549 | Y32: =COUNTIF($M$24:$M$5023,"<="&X32)-SUM(Y$2:Y31) -> 2
B33: 8 | C33: -0.4415876837 | D33: 0.08 | E33: 0.8251129767 | F33: -0.02792035321 | G33: 0.527292424 | H33: 0 | I33: 0 | K33: 10 | L33: 1.469547132 | M33: -3949.25 | P33: 8 | Q33: =G13*(C12>0) -> 0 | R33: 0 | X33: 13117.64706 | Y33: =COUNTIF($M$24:$M$5023,"<="&X33)-SUM(Y$2:Y32) -> 6
B34: 9 | C34: -0.7434319234 | D34: 0.08 | E34: 0.7550877244 | F34: -0.08486747184 | G34: 0.486752256 | H34: 0 | I34: 0 | K34: 11 | L34: 0.9977023653 | M34: -3669.31 | P34: 9 | Q34: =G14*(C13>0) -> 0 | R34: 0 | X34: 13921.56863 | Y34: =COUNTIF($M$24:$M$5023,"<="&X34)-SUM(Y$2:Y33) -> 7
B35: 10 | C35: 2.372808658 | D35: 0.08 | E35: 1.288708284 | F35: 0.7067000857 | G35: 0.4493289641 | H35: 0 | I35: 0 | K35: 12 | L35: 0.6718637435 | M35: -2033.38 | P35: 10 | Q35: =G15*(C14>0) -> 0 | R35: 0 | X35: 14725.4902 | Y35: =COUNTIF($M$24:$M$5023,"<="&X35)-SUM(Y$2:Y34) -> 5
K36: 13 | L36: 0.5412792227 | M36: 10499.71 | X36: 15529.41176 | Y36: =COUNTIF($M$24:$M$5023,"<="&X36)-SUM(Y$2:Y35) -> 2
K37: 14 | L37: 1.238399735 | M37: -3907.36 | X37: 16333.33333 | Y37: =COUNTIF($M$24:$M$5023,"<="&X37)-SUM(Y$2:Y36) -> 2
K38: 15 | L38: 1.357667419 | M38: -2995.86 | X38: 17137.2549 | Y38: =COUNTIF($M$24:$M$5023,"<="&X38)-SUM(Y$2:Y37) -> 3
K39: 16 | L39: 0.4937291979 | M39: -2520.79 | X39: 17941.17647 | Y39: =COUNTIF($M$24:$M$5023,"<="&X39)-SUM(Y$2:Y38) -> 5
K40: 17 | L40: 0.996551747 | M40: 5880.5 | X40: 18745.09804 | Y40: =COUNTIF($M$24:$M$5023,"<="&X40)-SUM(Y$2:Y39) -> 4
K41: 18 | L41: 0.6726394772 | M41: -3766.13 | X41: 19549.01961 | Y41: =COUNTIF($M$24:$M$5023,"<="&X41)-SUM(Y$2:Y40) -> 3
K42: 19 | L42: 0.8144215281 | M42: -2604.9 | X42: 20352.94118 | Y42: =COUNTIF($M$24:$M$5023,"<="&X42)-SUM(Y$2:Y41) -> 0
K43: 20 | L43: 0.8230627788 | M43: -2794.65 | X43: 21156.86275 | Y43: =COUNTIF($M$24:$M$5023,"<="&X43)-SUM(Y$2:Y42) -> 0
K44: 21 | L44: 1.418469162 | M44: -2982.02 | X44: 21960.78431 | Y44: =COUNTIF($M$24:$M$5023,"<="&X44)-SUM(Y$2:Y43) -> 3
K45: 22 | L45: 0.4725658225 | M45: -2523.21 | X45: 22764.70588 | Y45: =COUNTIF($M$24:$M$5023,"<="&X45)-SUM(Y$2:Y44) -> 1
K46: 23 | L46: 1.03226861 | M46: -3818.79 | X46: 23568.62745 | Y46: =COUNTIF($M$24:$M$5023,"<="&X46)-SUM(Y$2:Y45) -> 0
K47: 24 | L47: 0.649365911 | M47: 7553.13 | X47: 24372.54902 | Y47: =COUNTIF($M$24:$M$5023,"<="&X47)-SUM(Y$2:Y46) -> 0
K48: 25 | L48: 0.4924098016 | M48: 1358.46 | X48: 25176.47059 | Y48: =COUNTIF($M$24:$M$5023,"<="&X48)-SUM(Y$2:Y47) -> 1
K49: 26 | L49: 1.361305246 | M49: -2802.55 | X49: 25980.39216 | Y49: =COUNTIF($M$24:$M$5023,"<="&X49)-SUM(Y$2:Y48) -> 3
K50: 27 | L50: 2.485940397 | M50: -4266.7 | X50: 26784.31373 | Y50: =COUNTIF($M$24:$M$5023,"<="&X50)-SUM(Y$2:Y49) -> 0
K51: 28 | L51: 0.269644456 | M51: 17829.1 | X51: 27588.23529 | Y51: =COUNTIF($M$24:$M$5023,"<="&X51)-SUM(Y$2:Y50) -> 0
K52: 29 | L52: 0.9842925188 | M52: -2862.5 | X52: 28392.15686 | Y52: =COUNTIF($M$24:$M$5023,"<="&X52)-SUM(Y$2:Y51) -> 0
K53: 30 | L53: 0.6810171095 | M53: -1702.51 | X53: 29196.07843 | Y53: =COUNTIF($M$24:$M$5023,"<="&X53)-SUM(Y$2:Y52) -> 1
K54: 31 | L54: 0.2291485997 | M54: 18438.35 | X54: 30000 | Y54: =COUNTIF($M$24:$M$5023,"<="&X54)-SUM(Y$2:Y53) -> 0
K55: 32 | L55: 2.92526355 | M55: -4571.46
K56: =K55+1 -> 33 | L56: 1.22350228 | M56: -2776.25
K57: 34 | L57: 0.5478698791 | M57: -2650.55
K58: 35 | L58: 0.6554003223 | M58: -93.93
K59: 36 | L59: 1.022764291 | M59: -3263.7
K60: 37 | L60: 1.942746877 | M60: -4000.46
K61: 38 | L61: 0.3450372532 | M61: 6936.01
K62: 39 | L62: 1.016803464 | M62: -2808.68
K63: 40 | L63: 0.6592424884 | M63: -2619.36
K64: 41 | L64: 0.6981349948 | M64: 10540.3
K65: 42 | L65: 0.9601582086 | M65: -3665.99
K66: 43 | L66: 1.95323142 | M66: -5305.76
K67: 44 | L67: 0.3431851645 | M67: 12342.37
K68: 45 | L68: 0.5267218984 | M68: 2.65
K69: 46 | L69: 1.27262612 | M69: -2640.68
K70: 47 | L70: 0.4708574788 | M70: -2250.61
K71: 48 | L71: 1.423615587 | M71: -3269.03
K72: 49 | L72: 1.486391539 | M72: -4235.6
K73: 50 | L73: 0.4509713817 | M73: 10589.07
K74: 51 | L74: 0.8047074854 | M74: -3495.31
K75: 52 | L75: 0.8329983978 | M75: -1660.22
K76: 53 | L76: 0.747107877 | M76: -3284.82
K77: 54 | L77: 0.8972198884 | M77: -2206.69
K78: 55 | L78: 0.9265876353 | M78: -2609.92
K79: 56 | L79: 0.7234286542 | M79: 372.11
K80: 57 | L80: 1.125903726 | M80: -2407.05
K81: 58 | L81: 0.5953617795 | M81: -3066.5
K82: 59 | L82: 1.354768153 | M82: -3716.09
K83: 60 | L83: 0.4947858011 | M83: 4985.32
K84: 61 | L84: 1.9934555 | M84: -3412.91
K85: 62 | L85: 0.336260351 | M85: -1647.26
K86: 63 | L86: 0.4554365124 | M86: -2182.38
K87: 64 | L87: 1.471818855 | M87: -3347.9
K88: =K87+1 -> 65 | L88: 0.8475829727 | M88: -2550.71
K89: 66 | L89: 0.7908606798 | M89: -2879.23
K90: 67 | L90: 0.3703843261 | M90: 4336.6
K91: 68 | L91: 1.80979593 | M91: -3536.96
K92: 69 | L92: 1.017459087 | M92: -3201.05
K93: 70 | L93: 0.6588176909 | M93: -2281.52
K94: 71 | L94: 0.3945127525 | M94: -2246.82
K95: 72 | L95: 1.69910869 | M95: -2802.86
K96: 73 | L96: 0.5316678632 | M96: 3935.14
K97: 74 | L97: 1.260787218 | M97: -3664.4
K98: 75 | L98: 1.064784884 | M98: -3320.22
K99: 76 | L99: 0.629535652 | M99: 2972.46
K100: 77 | L100: 0.5704005195 | M100: -2858.38
K101: 78 | L101: 1.175174326 | M101: -2619.01
K102: 79 | L102: 0.6886144699 | M102: 8363.01
K103: 80 | L103: 0.9734329953 | M103: -2958.94
K104: 81 | L104: 0.660780294 | M104: 1766.03
K105: 82 | L105: 1.014437101 | M105: -4225.7
K106: 83 | L106: 1.525127512 | M106: -4455.7
K107: 84 | L107: 0.4395173786 | M107: -1674.17
K108: 85 | L108: 2.103382559 | M108: -4150.76
K109: 86 | L109: 0.3186866997 | M109: 17559.4
K110: 87 | L110: 0.5230563125 | M110: -2404.76
K111: 88 | L111: 1.281544702 | M111: -3044.36
K112: 89 | L112: 0.9395430146 | M112: -2542
K113: 90 | L113: 0.7134532806 | M113: -2892.13
K114: 91 | L114: 0.6026383478 | M114: 6590.42
K115: 92 | L115: 1.11230898 | M115: -4099.7
K116: 93 | L116: 0.6404922223 | M116: -2723.49
K117: 94 | L117: 1.046570158 | M117: -2718.68
K118: 95 | L118: 1.806527297 | M118: -2564
K119: 96 | L119: 0.3710544795 | M119: -2871.52
K120: =K119+1 -> 97 | L120: 1.484740244 | M120: -4752.29
K121: 98 | L121: 0.4514729421 | M121: 15325.78
K122: 99 | L122: 1.132365816 | M122: -463.2
K123: 100 | L123: 0.5919642189 | M123: -3684.61
K124: 101 | L124: 0.9391397003 | M124: -2481.72
K125: 102 | L125: 0.7137596737 | M125: -2913.45
K126: 103 | L126: 0.8966255023 | M126: -3340.47
K127: 104 | L127: 0.7476031457 | M127: -2242.5
K128: 105 | L128: 0.9882196036 | M128: -2697.35
K129: 106 | L129: 0.6783108164 | M129: -2740.05
K130: 107 | L130: 0.9007624776 | M130: -2618.46
K131: 108 | L131: 0.7441695927 | M131: -2793.5
K132: 109 | L132: 0.5148604011 | M132: -2978.42
K133: 110 | L133: 1.301945235 | M133: -2498.51
K134: 111 | L134: 0.3090716161 | M134: 16954.9
K135: 112 | L135: 2.168817876 | M135: -3974.7
K136: 113 | L136: 0.4676558763 | M136: -2418.26
K137: 114 | L137: 1.433361752 | M137: -3022.43
K138: 115 | L138: 0.4741229242 | M138: 10452.06
K139: 116 | L139: 1.413810664 | M139: -4173.92
K140: 117 | L140: 0.7789575255 | M140: -3069.53
K141: 118 | L141: 0.8605347841 | M141: -2404.69
K142: 119 | L142: 0.5186643687 | M142: 9065.28
K143: 120 | L143: 1.29239656 | M143: -3430.71
K144: 121 | L144: 0.4299811115 | M144: 9401.54
K145: 122 | L145: 1.558952308 | M145: -3584.02
K146: 123 | L146: 1.346219156 | M146: -4861.16
K147: 124 | L147: 0.4979278768 | M147: 11448.37
K148: 125 | L148: 1.499093453 | M148: -3159.14
K149: 126 | L149: 0.4471502725 | M149: 3537.67
K150: 127 | L150: 0.7429912445 | M150: -3207.04
K151: 128 | L151: 0.9021910433 | M151: -2306.43
K152: =K151+1 -> 129 | L152: 2.235210584 | M152: -3604.87
K153: 130 | L153: 0.2998912276 | M153: 5093.19
K154: 131 | L154: 0.5805814665 | M154: -2989.38
K155: 132 | L155: 1.154566731 | M155: -2544.37
K156: 133 | L156: 2.062405575 | M156: -3220.77
K157: 134 | L157: 0.3250185386 | M157: 13443.44
K158: 135 | L158: 0.3535914135 | M158: 14155.6
K159: 136 | L159: 1.895747522 | M159: -3541.35
K160: 137 | L160: 0.2274859551 | M160: 9592.59
K161: 138 | L161: 2.946643654 | M161: -3847.95
K162: 139 | L162: 0.6333518344 | M162: -2463.24
K163: 140 | L163: 1.058369155 | M163: -2959.87
K164: 141 | L164: 0.9824954405 | M164: -3628.51
K165: 142 | L165: 0.6822627551 | M165: 5737.65
K166: 143 | L166: 0.4166292855 | M166: -3031.09
K167: 144 | L167: 1.608912454 | M167: -2480.45
K168: 145 | L168: 0.5209405124 | M168: -2218.13
K169: 146 | L169: 1.286749696 | M169: -3390.55
K170: 147 | L170: 1.051022375 | M170: -3802.1
K171: 148 | L171: 0.6377790442 | M171: 13660.35
K172: 149 | L172: 0.351096289 | M172: 2728.29
K173: 150 | L173: 1.909219969 | M173: -3538.54
K174: 151 | L174: 0.5209088 | M174: -2413.31
K175: 152 | L175: 1.286828032 | M175: -3055.49
K176: 153 | L176: 0.7138092739 | M176: -2527.78
K177: 154 | L177: 0.9390744427 | M177: -2932.51
K178: 155 | L178: 1.761420752 | M178: -4026.19
K179: 156 | L179: 0.38055646 | M179: 13283.53
K180: 157 | L180: 1.558853647 | M180: -3058.26
K181: 158 | L181: 0.4300083252 | M181: -122.57
K182: 159 | L182: 0.6232499053 | M182: -2247.29
K183: 160 | L183: 1.075523703 | M183: -3244.21
K184: =K183+1 -> 161 | L184: 1.560220485 | M184: -3564.75
K185: 162 | L185: 0.4296316144 | M185: 5812.05
K186: 163 | L186: 1.085996317 | M186: -2547.02
K187: 164 | L187: 0.6172397046 | M187: 1384.78
K188: 165 | L188: 0.7917601416 | M188: -2429.08
K189: 166 | L189: 0.8466200946 | M189: -3028.18
K190: 167 | L190: 1.137695336 | M190: -2850.18
K191: 168 | L191: 0.58919117 | M191: -2554.62
K192: 169 | L192: 2.160291886 | M192: -6528.85
K193: 170 | L193: 0.3102914242 | M193: 25917.44
K194: 171 | L194: 0.8900710224 | M194: -4552.57
K195: 172 | L195: 0.7531084927 | M195: 16953.95
K196: 173 | L196: 1.579103161 | M196: -4987.98
K197: 174 | L197: 0.4244941448 | M197: 17795.34
K198: 175 | L198: 1.337433694 | M198: -3870.9
K199: 176 | L199: 0.5011987128 | M199: 3109.29
K200: 177 | L200: 0.700583172 | M200: -2978.47
... 823 more rows
